Cogmind - Beta 17 @@@ ROGUE MODE // 2026.06.27 @ 22:49:02 Player: Ceorik Result: Destroyed by as-14394 with Assembled Blade Performance ------------- Evolutions (0) 0 Regions Visited (2) 400 Robots Destroyed (14) 70 Value Destroyed (223) 223 Prototype IDs (1) 20 Alien Tech Used (0) 0 Bonus (5200) 5200 TOTAL SCORE: 5913 Bonus ------- Prayed to X0-1V1 5000 Major X0-1V1 Interference 200 Cogmind --------- Core Integrity 0/350 Matter 298/300 Energy 100/100 System Corruption 3% Temperature Cool (5) Movement Core (50) Location -10/Mines Parts ------- > --- POWER (1) -------- (None) > --- PROPULSION (2) --- (None) > --- UTILITY (3) ------ (None) > --- WEAPON (1) ------- (None) > --- INVENTORY (6) ---- Light Treads Large Storage Unit High-capacity Matter Pod (8) High-capacity Matter Pod (0) Light Assault Rifle Flail Peak State ------------ > --- POWER ------------ Ion Engine > --- PROPULSION ------- Light Treads Wheel > --- UTILITY ---------- High-capacity Storage Unit High-capacity Matter Pod X0-1V1's Piety Tracker > --- WEAPON ----------- Flail > --- INVENTORY -------- Ion Engine Ion Engine Ion Engine Light Treads Light Treads Light Treads Light Treads Light Treads Wheel Small Storage Unit Large Storage Unit Medium Matter Pod High-capacity Matter Pod High-capacity Matter Pod Medium Laser Light Assault Rifle Light Assault Rifle Light Assault Rifle Light Assault Rifle Mining Laser [Rating: 22] Favorites ----------- Power Ion Engine Engine Ion Engine Propulsion Light Treads Treads Light Treads Leg Aluminum Leg Wheel Wheel Utility High-capacity Storage Unit Device Seismic Detector Storage High-capacity Storage Unit Weapon Light Assault Rifle Energy Gun Medium Laser Ballistic Gun Light Assault Rifle Impact Weapon Flail Build | -11 -10 -10 ------- Run | Yrd Mat Min Slots Evolved . | . . . Power . | . . . Propulsion . | . . . Utility . | . . . Weapon . | . . . Parts Attached 16 | 2 9 5 Power 1 | . 1 . Engine 1 | . 1 . Core . | . . . Reactor . | . . . Propulsion 7 | 2 2 3 Treads 4 | 1 1 2 Leg . | . . . Wheel 3 | 1 1 1 Hover . | . . . Flight . | . . . Utility 5 | . 4 1 Device 2 | . 2 . Storage 3 | . 2 1 Processor . | . . . Hackware . | . . . Protection . | . . . Artifact . | . . . Weapon 3 | . 2 1 Energy Gun 1 | . 1 . Energy Cannon . | . . . Ballistic Gun 1 | . 1 . Ballistic Cannon . | . . . Launcher . | . . . Special Weapon . | . . . Impact Weapon 1 | . . 1 Slashing Weapon . | . . . Piercing Weapon . | . . . Special Melee Weapon . | . . . Unidentified Prototypes 1 | . 1 . Parts Lost 4 | . 1 3 Power 1 | . . 1 Propulsion 3 | . 1 2 Utility . | . . . Weapon . | . . . Highest Loss Streak 3 | . 1 3 To Critical Strikes . | . . . Average Backups 13 | 6 11 17 Power 2 | 1 2 2 Propulsion 3 | 4 3 5 Utility 4 | . 3 5 Weapon 2 | 1 2 4 Tool/Special . | . . . Unused Backups 16 | . 3 13 Power 5 | . 3 2 Propulsion 1 | . . 1 Utility 5 | . . 5 Weapon 5 | . . 5 Tool/Special . | . . . Average Slot Usage (%) 95 | . 97 92 Engine 13 | . 14 13 Treads 13 | . 14 12 Wheel 13 | . 13 13 Device 12 | . 11 13 Storage 14 | . 14 16 Energy Gun 2 | . 4 . Ballistic Gun 22 | . 23 19 Peak Build Rating 22 | 6 20 22 Average Rating 11 | 6 8 18 On Entrance 10 | 6 6 20 Avg Prop Armor Cover (%) 13 | . 13 13 Naked Turns 20 | . . 20 Heaviest Build 52 | 11 48 52 Greatest Support 40 | 10 40 40 Greatest Overweight (x) 4 | 1 4 4 Average Overweight (x) 2 | 1 2 3 Largest Inventory Capacity 21 | 8 20 21 Average Capacity 17 | 8 16 19 Most Carried 20 | 6 18 20 Average Carried 13 | 5 11 17 Final Capacity 20 | 8 20 6 Final Carried 18 | 4 18 6 Class Distribution -------------------- 100% | Mutant Dominant Class ---------------- Mutant | -10/Materials Mutant | -10/Mines Resources | -11 -10 -10 ----------- Run | Yrd Mat Min Matter Collected 730 | 200 455 75 Remotely . | . . . Salvage Created 435 | . 407 28 Parts 22 | . 22 . Haulers Intercepted 1 | . 1 . Recyclers Shooed . | . . . Parts Field Recycled . | . . . Retrieved Matter . | . . . Parts Self-Destructed . | . . . Prevented . | . . . Parts Restored . | . . . Kills | -11 -10 -10 ------- Run | Yrd Mat Min Combat Hostiles Destroyed 12 | . 10 2 Melee 1 | . . 1 Guns 10 | . 10 . Classes Destroyed 7 | . 6 1 Worker 1 | . 1 . Builder 1 | . 1 . Hauler 1 | . 1 . Recycler 1 | . 1 . Swarmer 6 | . 6 . Grunt 4 | . 4 . Assembled 2 | . . 2 Best Kill Streak 5 | . 5 2 Combat Bots Only 4 | . 4 2 Max Kills in Single Turn 1 | . 1 1 Gunslinging . | . . . Exploded . | . . . Melee 1 | . . 1 Uniques/NPCs Destroyed . | . . . Combat | -11 -10 -10 -------- Run | Yrd Mat Min Hostile Shots Fired 92 | . 47 45 Missed 22 | . 9 13 Hits 70 | . 38 32 Melee 7 | . . 7 Projectile 63 | . 38 25 AOE 1 | . . 1 Critical Strikes 1 | . . 1 Part Disruptions 1 | . . 1 Damage Taken 989 | . 408 581 Core 480 | . 107 373 Absorbed by Shields . | . . . Ignored by Resistances 24 | . . 24 Core Remaining (%) 100 | 100 . . Volleys Fired 41 | . 40 1 Largest 2 | . 2 2 Hottest 70 | . 70 40 Shots Fired 82 | . 80 2 Gun 82 | . 80 2 Cannon . | . . . Launcher . | . . . Special . | . . . Kinetic 77 | . 75 2 Thermal 5 | . 5 . Explosive . | . . . Electromagnetic . | . . . Robot Hit Streak 9 | . 9 3 Robot Miss Streak 3 | . 3 . Penetration Max . | . . . Secondary Targets . | . . . Shots Hit Robots 60 | . 56 4 Core Hits 25 | . 24 1 Critical Kills . | . . . Critical Parts Destroyed 2 | . 1 1 Critical Strikes 2 | . 1 1 Destroy 1 | . 1 . Smash 1 | . . 1 Melee Attacks 3 | . . 3 Impact 3 | . . 3 Slashing . | . . . Piercing . | . . . Sneak Attacks . | . . . Combat Hostiles . | . . . Follow-up Attacks . | . . . Damage Inflicted 662 | . 497 165 Guns 515 | . 497 18 Cannons . | . . . Explosions . | . . . Melee 119 | . . 119 Ramming 28 | . . 28 Kinetic 463 | . 445 18 Thermal 52 | . 52 . Explosive . | . . . Electromagnetic . | . . . Impact 119 | . . 119 Slashing . | . . . Piercing . | . . . Highest Corruption 3 | . . 3 Average Corruption 3 | . . 3 Corruption Purged . | . . . Corruption Blocked . | . . . Effects 1 | . . 1 Matter Fused 1 | . . 1 Overload Shots . | . . . Overflow Damage 52 | . . 52 Projectiles . | . . . Explosions . | . . . Melee 52 | . . 52 Knockbacks . | . . . Impact . | . . . Kinetic . | . . . Secondary . | . . . Self-Inflicted Damage 14 | . . 14 Shots . | . . . Rammed 3 | . . 3 Targets Rammed 3 | . . 3 Kicked . | . . . Crushed . | . . . Highest Temperature 121 | . 121 42 Average Temperature 51 | . 58 18 Received Heat Transfer 417 | . 117 300 Siege Activations . | . . . Martial Activations . | . . . Shielding Activations . | . . . Robots Disrupted . | . . . Combat Hostiles . | . . . Robots Corrupted 1 | . . 1 Combat Hostiles 1 | . . 1 Parts Fried . | . . . Impact Corruptions 2 | . . 2 Robots Melted . | . . . Combat Hostiles . | . . . Parts Melted . | . . . Heat Transferred 148 | . 148 . Parts Sabotaged . | . . . Parts Stolen . | . . . Parts Stripped . | . . . Power Chain Reactions . | . . . Alert | -11 -10 -10 ------- Run | Yrd Mat Min Maximum Alert Level . | . . . Low Security (%) 100 | 100 100 100 Level 1 . | . . . Level 2 . | . . . Level 3 . | . . . Level 4 . | . . . Level 5 . | . . . High Security . | . . . Max Security . | . . . Peak Influence 144 | . 144 26 Initial 26 | . . 26 Average 45 | . 65 3 Influence Increases 288 | . 288 . Destroy 0b10 Robot/C 200 | . 200 . Destroy 0b10 Robot/NC 20 | . 20 . Destroy Leader 42 | . 42 . Successful Hack 11 | . 11 . Lose Combat Pursuer 15 | . 15 . Influence Decreases 288 | . 219 69 Entered New Map 43 | . . 43 Time Decay 235 | . 209 26 Lost Part 10 | . 10 . Squads Dispatched 1 | . 1 . Investigation . | . . . Extermination . | . . . Reinforcement 1 | . 1 . Assault . | . . . Garrison . | . . . Intercept . | . . . Searches Triggered . | . . . Construction Impeded . | . . . Haulers Reinforced . | . . . Active Scanning Responses . | . . . Cargo Convoy Interrupts . | . . . Stealth | -11 -10 -10 --------- Run | Yrd Mat Min Distress Signals 3 | . 3 . Communications Jammed . | . . . Distress Signals . | . . . Times Spotted 41 | . 23 18 Peak Tracking Total 13 | . 6 13 Tactical Retreats 2 | . 1 1 Traps | -11 -10 -10 ------- Run | Yrd Mat Min Traps Triggered 1 | . 1 . Indirectly . | . . . Trap Hack Attempts . | . . . Triggered . | . . . Disarmed . | . . . Reprogrammed . | . . . Reused . | . . . Traps Extracted . | . . . Installed . | . . . Triggered . | . . . Machines | -11 -10 -10 ---------- Run | Yrd Mat Min Machines Disabled . | . . . Max in Single Turn . | . . . Machines Repaired . | . . . Machines Dismantled . | . . . Machines Sabotaged . | . . . Overloaded Fab Kills . | . . . Hacking | -11 -10 -10 --------- Run | Yrd Mat Min Machines Accessed 5 | . 5 . Terminals 5 | . 5 . Fabricators . | . . . Repair Stations . | . . . Recycling Units . | . . . Scanalyzers . | . . . Garrison Access . | . . . Total Hacks 15 | . 15 . Successful 7 | . 7 . Failed 7 | . 7 . Catastrophic . | . . . Database Lockouts 1 | . 1 . Manual 15 | . 15 . Terminals 15 | . 15 . Fabricators . | . . . Repair Stations . | . . . Recycling Units . | . . . Scanalyzers . | . . . Garrison Access . | . . . Terminal Hacks 3 | . 3 . Robot Analysis 2 | . 2 . Alert Level 1 | . 1 . Fabricator Hacks . | . . . Repair Station Hacks . | . . . Recycling Unit Hacks . | . . . Scanalyzer . | . . . Garrison Access Hacks . | . . . Unauthorized Hacks 4 | . 4 . Terminals 4 | . 4 . Botnet 4 | . 4 . Fabricators . | . . . Repair Stations . | . . . Recycling Units . | . . . Scanalyzers . | . . . Garrison Access . | . . . Data Cores Recovered . | . . . Used . | . . . Hacking Detections 5 | . 5 . Full Trace Events . | . . . Feedback Events . | . . . Feedback Blocked . | . . . Robot Schematics Acquired . | . . . Robots Built . | . . . Authchips . | . . . Time . | . . . Total Robot Build Rating . | . . . Part Schematics Acquired . | . . . Parts Built . | . . . Authchips . | . . . Time . | . . . Total Part Build Rating . | . . . Part Studies Acquired . | . . . Parts Repaired . | . . . Time . | . . . Parts Recycled . | . . . Recycled Matter . | . . . Retrieved Matter . | . . . Retrieved Components . | . . . Parts Scanalyzed . | . . . Part Schematics Acquired . | . . . Parts Damaged . | . . . Bothacking | -11 -10 -10 ------------ Run | Yrd Mat Min Used RIF Installer . | . . . Robots Hacked . | . . . Non-combat . | . . . Combat . | . . . Robot Hacks Applied . | . . . Relay Couplers Released . | . . . Fabnet Peak Effective % . | . . . Robots Rewired . | . . . Allies Hacked . | . . . Hacks Repelled . | . . . Allies | -11 -10 -10 -------- Run | Yrd Mat Min Total Allies . | . . . Largest Group . | . . . Highest-Rated Group . | . . . Highest-Rated Ally . | . . . Total Orders . | . . . Ally Attacks . | . . . Total Damage . | . . . Kills . | . . . Allies Corrupted . | . . . Allies Melted . | . . . X0-1V1 Amusement Gains 83 | . 13 70 Good Acts 4 | . . 4 Bad Acts 2 | . . 2 Intel | -11 -10 -10 ------- Run | Yrd Mat Min Active Infowar (turns) 457 | . 457 . Seismic 457 | . 457 . Robot Analysis Total 2 | . 2 . Derelict Logs Recovered . | . . . Drone Launches . | . . . Drone Recoveries . | . . . Exploration | -11 -10 -10 ------------- Run | Yrd Mat Min Turns Passed 893 | 5 610 278 Spaces Moved 502 | 1 344 157 Core 31 | . . 31 Treads 12 | . 5 7 Legs . | . . . Wheels 459 | 1 339 119 Hover . | . . . Flight . | . . . Fastest Speed 50 | 95 95 50 Average Speed 120 | 95 117 126 Slowest Speed 320 | 95 240 320 Overloaded Moves . | . . . Propulsion Burnouts . | . . . Robots Hopped . | . . . Potential Cave-ins . | . . . Cave-ins Triggered . | . . . Exploration Rate (%) 33 | 1 61 37 Regions Visited 2 Branch Regions 1 Pre-discovered Areas . | . . . Known Exits Taken . | . . . Unknown Exits Taken 2 | 1 1 . Scrap Searched 1 | . . 1 Spaces Dug . | . . . Terrain Destroyed . | . . . Melee . | . . . Projectile . | . . . AOE . | . . . Terrain Rammed . | . . . Walls Destroyed . | . . . Machines Disabled . | . . . Actions | -11 -10 -10 --------- Run | Yrd Mat Min Total 716 | 4 483 229 Wait 123 | . 68 55 Move 500 | . 343 157 Hop . | . . . Pick Up 19 | . 16 3 Fast Attach 2 | . 2 . Attach 5 | . 2 3 Detach . | . . . Swap 12 | 2 7 3 Drop 8 | 2 5 1 Fire 41 | . 40 1 Melee 3 | . . 3 Ram 3 | . . 3 Kick . | . . . Crush . | . . . Escape Stasis . | . . . Rewire . | . . . Trap . | . . . Miscellaneous . | . . . Route ------- -11/Scrapyard -10/Materials (discovered 4 exits: [*Mat x2] / [*Min] / [*Sub]) -10/Mines History --------- Turn | Location | Event 6 | -11/Scrapyard | Discovered new exit (range 0) 6 | -11/Scrapyard | Entered Materials 14 | -10/Materials | Central database locked down 76 | -10/Materials | Discovered new exit (range 3) 147 | -10/Materials | Discovered new exit (range 15) 335 | -10/Materials | Build established: Mutant 464 | -10/Materials | Discovered new exit (range 15) 520 | -10/Materials | Discovered new exit (range 8) 547 | -10/Materials | Prayed at D.C.S.S. Altar Unit 616 | -10/Materials | Entered Mines 679 | -10/Mines | Inventory capacity permanently improved by X0-1V1 (+1; -100 max core) 751 | -10/Mines | Assembled infested the area 792 | -10/Mines | X0-1V1 mutated your Weapon slot to Utility slot 832 | -10/Mines | Core integrity permanently improved by X0-1V1 (+200) 874 | -10/Mines | Released all parts (6) 877 | -10/Mines | X0-1V1 upgraded hostiles (x2) 889 | -10/Mines | Core integrity fell below 50% 893 | -10/Mines | Core integrity fell below 20% 894 | -10/Mines | Destroyed by as-14394 with Assembled Blade Last Messages --------------- 00874_ Released Hcp. Storage Unit. 00874_ Released X0-1V1's Piety Tracker. 00874_ Released Hcp. Matter Pod. 00874_ Released Flail. 00874_ Released Lgt. Treads. 00875_ Dropped Sml. Storage Unit. 00876_ The unstable cave ceiling collapses. 00876_ Acquired Flail. 00877_ X0-1V1 tips the scales in a new dimension. as-66200 reshaped into more powerful Assembled. as-33687 reshaped into more powerful Assembled. 00878_ X0-1V1 manipulates the space around you (+21% KI resistance). 00881_ The unstable cave ceiling collapses. 00888_ Slammed into as-03022. 00892_ Slammed into as-70180. 00893_ System corrupted: Matter fused (-6). 00893_ Slammed into as-14394. 00894_ X0-1V1 guffaws! Map ----- +----------------------------------------------------+ | ??????????????# #????????????????? | | ??????????????# #????????????????? | | ?????????????## ##???????????????? | | ?????????????# ###?????????????? | | ?????????????# ###???????????? | | ?????????????# #???????????? | | ?????????????## ![! ##???????????? | | ??????????????##*[[ #???????????? | | ???????????????#==![ #???????????? | | ????????????####|=*= #???????????? | | ##?????????## # *= #???????????? | | ##????????# ! #???????????? | | #????????## ##??????????? | | ##???????## "" #??????????? | | " ##??????# #??????????? | | " #?????## ##??????????? | | " #????## ##???????????? | | #???## #????????????? | | #??### #????????????? | | ##??# ## #????????????? | | ##???## ## ## ###???????????? | | #?????# # # #???????????? | | #????# ## # # #???????????? | | #????# #### # ###?????????? | | ##????# ## ###?# a a #####?????? | | ??????# ## ????# aa@ a##????? | | ???##### # ##????# # a aaaa ####?? | | #??# #??????### ## a##a ##? | | #??# #?????????#########a #? | | #??# ## #?????????????????# #? | | #### # ???????????????????## #? | | #?????????????????????## < #? | | #??????????????????????## ##? | | #######????????????????????????###?? | | #??????????????????????????????????? | | ???????????????????????????????????? | | ???????????????????????????????????? | | ???????????????????????????????????? | | ???????????????????????????????????? | | ???????????????????????????????????? | | ???????????????????????????????????? | | ???????????????????????????????????? | | ???????????????????????????????????? | | ???????????????????????????????????? | | ???????????????????????????????????? | | ???????????????????????????????????? | | ???????????????????????????????????? | | ???????????????????????????????????? | | ???????????????????????????????????? | | ???????????????????????????????????? | +----------------------------------------------------+ Best States ------------- Heat Dissipation 25 Energy Generation 10 Energy Capacity 250 Matter Stores 488 Matter Capacity 500 Sight Range 16 Terrain Scan Density 10 Resistance: KI 21 Evasion (%) 50 Recoil Reduction 2 Item Schematics ----------------- None Robot Schematics ------------------ None Fabricated ------------ Nothing Repaired ---------- Nothing Studied --------- None Alien Tech Used ----------------- None Achievements -------------- None Challenges ------------ None Game ------ Seed VoltaicStormHammerchucker Manual? 0 Play Time 00:10:47 Cumulative 204.0 hours Start 2026.06.27 @ 22:41:30 End 2026.06.27 @ 22:49:02 Sessions 1 Manual Loads 0 Difficulty Rogue Special Mode None Game No. 168 Rogue 168 Adventurer 0 Explorer 0 Win Type - Total 3 Types 3/0/0/0/0/0/0/0/0/0 Lore% 77 Gallery% 66 Achievement% 58 Wizard Run 0 Options --------- Layout 2 ASCII 0 Keyboard 0 Movement Mouse Keybinds 0 Fullscreen 1 Font 24/Smallcaps Map View 50x44 Zoom Use 0% Tactical HUD 1 Map Filters NONE Filters NONE Steam 1 RUN: 7ff050d5-26b7-4231-9a75-14380f931512